Workbook

Sheet Instructions and Assumptions
E2: Solar Screening Tool
E3: Version 1.5, Updated October 2020
A5: Instructions
A6: This tool can be used to complete a preliminary assessment of solar financial viability for a New York City affordable housing property. This tool was developed by the New York City Department of Housing Preservation and Development (HPD), with support from non-profit Solar One, as part of the agency's efforts to increase the deployment of solar electric systems on affordable housing properties participating in HPD programs. Completing preliminary solar screening is a requirement for all projects covered by the Enterprise Green Communities NYC 2020 Overlay.
A13: 1. User Inputs: populate all blue fields on the User Inputs tab. Please confirm that all fields are populated accurately, as these inputs impact the solar project financial model. If you do not understand what value to enter into a required field, hover over the field to view a pop-up with explantory text and links.
A15: 2. Advanced Inputs (Optional): if you have specific information regarding the project, such as a detailed solar design with a specific price, system size and estimated energy production, you can enter this information in the Advanced Inputs tab. All fields on the Advanced Inputs tab are optional, and values provided in the Advanced Inputs tab will override the calculator's default assumptions.
A17: 3. Solar Layout: include an image of the Sustainable Roofing Zone or the solar panel layout on this tab, and provide a brief (1-2 sentence) description in the blue text area at the bottom of the page. If project has a roof plan showing detailed solar array, please note this on the Layout Page.
A19: 4. Solar Summary: review this tab, which is read-only, for a summary of financial benefits of solar at the site, calculated based on user inputs. Results include key financial metrics such as the Upfront Cost Estimate, Year One Utility Savings, and Payback Period.
A21: 5. 25 Year Cashflow: to view a 25 year cash flow analysis of the solar energy system, click "VIEW 25 YEAR CASH FLOW" on the Solar Summary Tab. This will display another page which includes a breakdown of costs and benefits by year over a 25 year analysis period.
A23: 6. Submission: once you have completed the HPD Solar Screening Tool for your property, email it to GreenCommunities@hpd.nyc.gov along with a fully populated HPD Solar Approval Form.
A28: Questions: if you have questions or feedback regarding this tool, feel free to contact Solar One:
D30: Website: | E30: https://herecomessolar.nyc/contact/
D31: Email: | E31: herecomessolar@solar1.org
E35: Solar Screening Tool
E36: =E3 -> Version 1.5, Updated October 2020
A38: Assumptions
A39: The following pages outline assumptions included in the Solar Screening Tool. Disclaimer: Solar One is providing this preliminary analysis tool on an as-is basis and makes no claims regarding the accuracy of calculations, assumptions and figures provided herein. Solar technical feasibility, installation costs, incentives, energy generation, and electricity bill savings may vary.
A44: Solar Energy System Costs
A45: Unless a user provides the total cost of the solar energy system via Advanced Inputs, the cost is estimated based on User Inputs. Key cost drivers that are accounted for in the tool include system size (in kilowatts-DC), mounting method, building height, and the complexity of permitting and metering.
A49: First, a base price is estimated based on system size:
A66: The default base prices in this tool are informed by the publicly available NYSERDA solar project dataset which includes system size and pricing for all solar projects that received incentives from NYSERDA.
A69: Historically, the turnkey cost of solar energy systems has declined by ~4% per year. This tool assumes that solar pricing will continue this trend, and the base price is modified to account for the user-defined Project Completion Year:
A79: Next, pricing adders are applied based on the project's complexity:
A91: The Mechanically Attached Adder is applied for system < 15 kW-DC or more than 100 feet tall.
A92: The Canopy Adder is applied if "Solar Canopy Design" = "Yes".
A93: The Tall Building Adders are applied on top of any other pricing adders based on the building height.
A94: The Landmarks Adder is applied if "Landmarks or Historic District" = "Yes".
A95: The New Meter Adder is applied if the value of solar will be significantly higher with a solar export meter.
A96: A Prevailing Wage Adder of 20% is applied to all projects where Prevailing Wages are required.
A98: Solar Energy System Size
A99: Unless a user specifies the solar energy system size using Advanced Inputs, the system size is estimated based on User Inputs. Key inputs that impact estimated system size include: Est. Usable Roof Area for Solar (sq ft), Solar Canopy Design (which impacts the assumed power density), and Est. Annual Owner-Paid Electricity Costs.
A104: First, the maximum possible system size is estimated based on Est. Usable Roof Area for Solar (sq ft) and assumed power density (Watts-DC/square foot).
B106: Standard Power Density: 12 Watts-DC/sq ft
B107: Canopy Power Density: 14 Watts-DC/sq ft
A109: Next, the system size is used to estimate annual solar energy generation and utility bill savings. If the system is oversized relative to the Owner-Paid Electricity Cost, the system size is reduced to offset no more than 100% of the owner-paid electricity bills.
A113: Solar Energy Production
A114: Unless a user specifies Year One Production (kWh) using Advanced Inputs, the estimated year one solar production is estimated by multiplying the system size (kW-DC) by a production factor of 1,092.5 kWh/kW-DC. This is a conservative production factor for systems in NYC. Please note that actual solar production varies based on several factors, including solar panel tilt, orientation, shade, inverter efficiency, and normal weather variability. This tool assumes that solar energy production degrades by 0.5% each year to account for normal/expected solar panel performance degradation.
A121: Utility Bill Savings
A122: Unless a user enters override values for the Value of Solar ($/kWh) fields using Advanced Inputs, utility bill savings are estimated based on the Owner-Paid Electricity Information fields on the User Inputs tab as well as the Year One Production (kWh) estimate. The logic used to estimate electricity bill savings based on Owner-Paid Electricity Information is fairly sophisticated:
A127: Electric Tariff: assuming the utility is Con Edison and the user does not specify the electric tariff with Advanced Inputs, user inputs are evaluated to estimate the owner-paid electric tariff/rate class:
A130: Con Edison Tariff | C130: Description
A131: EL9 | C131: Large Commercial (typical electricity tariff for elevator building common areas with individually metered apartments)
A132: EL2 | C132: Small Commercial (typical electricity tariff for walk up building common areas with individually metered apartments)
A133: EL8 | C133: Master Metered Residential Rate
A134: EL1 | C134: Residential and Religious Rate (most common for individual apartments or houses of worship)
A135: EL12 | C135: Master Metered Residential Rate w/Electric Resistance Heating
A138: Annual Usage (kWh): unless the user enters Annual Electricity Usage (kWh) using Advanced Inputs, this value is estimated based on the Owner-Paid Electricity Cost ($) and the Electric Tariff:
A141: If the electric tariff is EL8, EL9 or EL12, the total owner paid electricity bill is divided by a simple blended electricity rate of $0.20/kWh to estimate annual usage. If the electric tariff is EL1 or EL2, the total owner paid electricity bill is divided by a simple blended electricity rate of $0.24/kWh to estimate annual usage.
A145: Peak Demand (kW): unless a user enters Peak Demand (kW) using Advanced Inputs, this value is estimated based on Annual Usage and assuming a load ratio of 50%. While solar does not typically reduce demand charges, Peak Demand is an important input to estimate the Year One Value of Solar ($/kWh) for multifamily EL9 electricity customers.
A150: Year One Value of Solar ($/kWh): estimating the value of solar in New York State is complex. There are currently two distinct regimes for valuing solar energy; net energy metering, where solar energy directly offsets the volumetric portion of an owner-paid electricity bill or alternatively the Value of Distributed Energy Resources (VDER) tariff, a monetary crediting methodology that accounts for the location-specific benefits of distributed energy resources. VDER was adopted by New York State for large commercial customers and optionally for all customers over the last few years, and in many cases it can allow for greater utility bill savings than net metering. Unless the user enters a Year One Value of Solar using the Advanced Inputs, this value is estimated based on the Electric Tariff, Peak Demand, and corresponding metering recommendation to maximize the value of solar energy. Please note: for the small subset of NYC buildings in PSEG-LI territory, we recommend entering the Year One Value of Solar ($/kWh) using Advanced Inputs.
A161: Net Energy Metering
A162: For electricity consumed behind the owner's existing utility meter, this tool assumes that the year one value of solar is $0.11/kWh for demand-metered electric tariffs (EL8, EL9, EL12) and $0.22/kWh for non-demand-metered tariffs (EL1 and EL2). Net metering is generally recommended for EL1 and EL2 accounts as well as very large EL9 accounts, although there are exceptions and we recommend that building owners consult with a solar expert regarding their solar credit distribution strategy to maximize savings.
A168: Customer Benefit Contribution: starting in 2021, solar projects that are not compensated under Community Distributed Generation (CDG) will be subject to monthly utility fees. For a project that is compensated under Net Energy Metering, the fee is estimated to be $1.09/kW-DC/month. For a project that is compensated under VDER, the fee is estimated to be $1.09/kW-DC/month * 70%.
A170: Value of Distributed Energy Resources (VDER)
A171: For electricity that is exported to the Con Edison grid and compensated under VDER, either through a new or existing meter, the solar energy is valued based on a number of user inputs and assumptions. The New York State Energy Research and Development Authority (NYSERDA) publishes and maintains a VDER Calculator, a spreadsheet-based tool that is used to accurately estimate the value of solar energy. This tool was referenced during the creation of the HPD Solar Screening Tool, and it can be accessed here:
A176: https://www.nyserda.ny.gov/All-Programs/Programs/NY-Sun/Contractors/Value-of-Distributed-Energy-Resources/Solar-Value-Stack-Calculator
B178: Commercial System Relief Program (CSRP) Zone
B179: Con Edison's Commercial System Relief Program (CSRP) zones impact the value a building will receive for solar energy under VDER, with a higher value given to solar projects in day-peaking load zones, where the solar energy offsets demand for electricity during peak times. Unless a user specifies their CSRP Load Zone using Advanced Inputs, this tool makes the conservative assumption that all proposed solar projects are located in a 7:00 PM-11:00 PM CSRP zone, which will result in a lower estimated value of solar energy.
B186: Community Credit
B187: Under VDER, community shared solar projects in Con Edison territory are eligible to receive a credit of $0.12/kWh on top of the base "value stack" value of solar. The Community Credit effectively doubles the value of solar energy for demand metered electric customers, and it is available for solar projects on residential buildings for all rate classes with the exception of EL9 large commercial customers that have a Peak Demand greater than 25 kilowatts. If a building receives service under the EL8, EL12, or EL9 rate class (and has a Peak Demand below 25 kW), the tool assumes that the solar project will include a new Con Edison meter so the building can benefit from the Community Credit and receive greater utility bill savings. If a new meter is required, this increases the upfront cost of the system by $1,500 and the financial analysis includes the fees associated with the new Con Edison meter ($27/month) in addition to the greater value of solar.
A198: The table below summarizes the estimated Year One Value of Solar for projects compensated under VDER and which receive the Community Credit. Values were calculated using the NYSERDA VDER calculator. This tool assumes that all projects are located in the lowest value CSRP Zone unless otherwise indicated using the Advanced Inputs.
A212: Value of Solar Annual Escalation (%): unless a user specifies this value using Advanced Inputs, the assumed annual increase in the value of solar is 1.0% for projects receiving compensation under VDER and 2.5% for projects receiving compensation under net energy metering.
A216: New Meter Fees: solar projects compensated under the Community Distributed Generation program require new Con Edison meters. The monthly meter fee is estimated to be $27/month.
A219: Solar Incentives
A220: Solar energy systems are eligible for a number of federal, state and local incentives that improve the return on investment for solar energy systems. This tool incorporates the following incentives:
B223: Federal Tax Credit: solar projects installed in the United States are eligible for a federal income tax credit. The tax credit is current available for commercial businesses (as the Investment Tax Credit or ITC) or for owner-occupied homes, including co-ops and condos (as the Residential Energy Tax Credit or RETC). The table below summarizes the level of the tax credit by year. This tool estimates the value of the federal tax credit based on the User Input Project Completion Year, and assumes that the basis for the tax credit is the cost of the system after deducting the NY-SUN incentive. If a user indicates that they do not pay income taxes on the User Inputs tab, the value of this incentive is zero dollars.
B231: NY-SUN Incentive: NYSERDA offers a capacity-based incentive for solar projects in New York. For projects in Con Edison territory, there is a base incentive plus an affordable housing adder. This tool assumes that all Con Ed projects are eligible to receive the NY-SUN Incentive including the affordable adder. The incentive is expected to decline over time, as more solar capacity is built in Con Edison territory. The table below summarizes the estimated level of the NY-SUN Incentive by year:
B243: New York State Residential Tax Credit: residents of owner-occupied multifamily buildings are eligible to receive a state income tax credit of up to 25% of the cost of a solar energy system after deducting the NY-SUN incentive. The NYS Residential Tax Credit is currently capped at $5,000 per household and is capped at 50 kilowatts-DC on a per project basis. The incentive is included in the financial analysis for owner-occupied buildings only.
B249: New York State Historic Rehabilitation Tax Credit: residents of owner-occupied multifamily buildings that are listed on the National Register and in income qualifying census tracts are eligible for a state income tax credit worth 20% of the cost of a solar energy system. This incentive is included in the financial analysis for owner-occupied buildings where Landmark/Historic District = Yes and Income-Qualifying Census Tract = Yes. Learn more about this incentive program here:
B254: https://parks.ny.gov/shpo/tax-credit-programs/
B256: Interaction Between Residential NY State Tax Credits and Federal Income Taxes: this model assumes that offsetting a state income tax bill results in a corresponding increase to federal taxable income. Model assumes that the incremental taxable federal income is taxed at 25%.
B260: NYC Solar Property Tax Abatement: solar projects in NYC may be eligible for a solar property tax abatement equal to 20% of the cost of the system after deducting the NY-SUN incentive, applied in equal increments over the course of four year. If a building already has full tax exemption or certain abatements, this incentive cannot be monetized. A user can specify eligibility for the NYC Property Tax Abatement on the User Inputs tab.
B266: Accelerated Depreciation: solar energy systems owned by commercial businesses are eligible for federal and state accelerated depreciation, including 100% year one bonus depreciation at the federal level and 5-year MACRS at the state level. The federal basis for depreciation is the total cost of the solar energy system minus half of the federal tax credit. The state basis for depreciation is the cost of the solar energy system minus the NY-SUN incentive. Please note that an owner's ability to take advantage of depreciation depends on their business' taxable passive income, income tax rates and total tax liability. If a user indicates that they are not able to benefit from Accelerated Depreciation or that they are not eligible for solar tax incentives via User Inputs, the value of this incentive is calculated to be zero. Unless a user specifies federal and state income tax rates using Advanced Inputs, the assumed federal income tax rate for calculating the value of depreciation is 21% and the state income tax rate is 7.1%. The table below summarizes the depreciation schedules:
B286: Low Income Housing Tax Credits: solar energy systems can be included in the basis for LIHTCs. When a project includes LIHTCs, it can significantly improve the economics of the solar project because LIHTCs can be combined with solar incentives. There are two ways for a user to indicate that a solar project is eligible for LIHTCs; on the User Inputs tab, a user can enter one of the following values into the field Low Income Housing Tax Credits: "No", "4%", or "9%". Entering 4% on the User Inputs tab yields an effective 3.17% LIHTC value , applied over ten years, while entering 9% yields a 9% LIHTC value, applied over ten years (source: October 2019 IRS bulletin: https://www.irs.gov/pub/irs-drop/rr-19-23.pdf). The other way that a user can indicate the Low Income Housing Tax Credit value is through the Advanced Inputs tab, where a user can specify the exact LIHTC rate. The LIHTC basis is the total cost of the solar energy system minus 50% of the value of the federal solar Investment Tax Credit.
A297: Other Assumptions
A299: Solar Operations & Maintenance: this tool assumes there are limited O&M expenses for the solar energy systems. Solar energy systems typically include 25 year manufacturer warranties on solar panels, 10+ year warranties on inverters, and 5-10 year workmanship warranties. The only O&M cost included in this tool is an inverter replacement during year 15 of the 25 year analysis period. The assumed inverter replacement cost is $0.20/Watt-DC including parts & labor.
A305: HPD Underwriting Tab
A307: Capitalization (Cap) Rate: this input depends on what capitalization rate the first mortgage lender uses to size their first mortgage or an estimate of what lender would use. For this tool, the cap rate is used to approximate the additional first mortgage that project can receive through the expense savings associated with a solar PV system.
A312: Raise per Tax Credit (LIHTC and ITC): the tax credit raise refers to what the LIHTC and ITC syndicators/investors will pay the developer for each dollar of LIHTC/ITC tax credit (in other words, the amount of money the developer expects to receive per dollar of tax credits). Investors/syndicators typically pay slightly more or less than $1 per dollar of tax credits, depending on market conditions and the project's risk profiel. In this tool, we use the raise to estimate the additional tax credit revenue the solar OV system can generate for the project.

Sheet User Inputs
C2: Solar Screening Tool
C3: =" "&'Instructions and Assumptions'!E3 -> Version 1.5, Updated October 2020
A5: User Inputs
A6: This tool can be used to complete a preliminary assessment of solar financial viability for a New York City affordable housing property based on the inputs below. This tool was developed by the New York City Department of Housing Preservation and Development (HPD), with support from non-profit Solar One, as part of the agency's efforts to increase the deployment of solar electric systems on affordable housing properties participating in HPD programs.
A11: Building Characteristics
A12: Site Address | D12: 123 Main St
A13: HPD ID | D13: 12345
A14: Building Type | D14: Rental
A15: New Construction vs Renovation | D15: New Construction
A16: Prevailing Wages Required | D16: No
A17: Project Completion Year | D17: 2021
A18: Eligible for Solar Tax Credit | D18: Yes
A19: Can Project Benefit from Accelerated Depreciation? | D19: Yes
A20: Low Income Housing Tax Credits | D20: No
A21: Eligible for NYC Solar Property Tax Abatement | D21: No
A22: Landmark or Historic District | D22: No
A23: Income Qualifying Census Tract | D23: No
A24: Building Height (ft) | D24: 70
A25: Estimated Usable Roof Area for Solar (sq ft) | D25: 3000
A26: Solar Canopy Design | D26: Yes
A28: Owner-Paid Electricity Information
A29: Electric Utility | D29: Con Edison
A30: Est. Annual Owner-Paid Electricity Costs | D30: 20000
A31: Master-Metered Building | D31: No
A32: Elevator Building | D32: Yes
A34: Contact Information
A35: Name | D35: John Doe
A36: Company | D36: ACME Solar
A37: Email | D37: jd@acme.io
A38: Phone | D38: 212-222-2222
A43: Disclaimer: Solar One is providing this preliminary analysis tool on an as-is basis and makes no claims regarding the accuracy of calculations and figures provided herein. Solar technical feasibility, installation costs, incentives, energy generation, and electricity bill savings may vary.

Sheet Advanced Inputs (hidden)
C2: Solar Screening Tool
C3: ='User Inputs'!C3 -> Version 1.5, Updated October 2020
A5: ADVANCED INPUTS (OPTIONAL)
A6: Values entered into this form will override any default assumptions or calculated values. All fields on this page are optional.
A9: Solar Energy System Characteristics
A10: Solar Energy System Size (kW-DC)
A11: Turnkey Solar Energy System Price ($/Watt-DC)
A12: Year One Production (kWh)
A13: Annual Solar Performance Degradation
A15: Value of Solar ($/kWh)
A16: Con Edison Electricity Tariff (Owner-Paid)
A17: Peak Demand (Prev. 12 Months or Estimated (kW))
A18: Annual Electricity Usage (Actual or Estimated kWh)
A19: CSRP Load Zone
A20: Year One Value of Solar ($/kWh)
A21: Annual Escalation to Value of Solar
A22: Annual Meter Fees (CDG Only)
A24: Incentives and Taxes
A25: Low Income Housing Tax Credit (%)
A26: Solar Tax Credit (%)
A27: Owner Federal Income Tax Rate (%)
A28: Owner State Income Tax Rate (%)
A37: Disclaimer: Solar One is providing this preliminary analysis tool on an as-is basis and makes no claims regarding the accuracy of calculations and figures provided herein. Solar technical feasibility, installation costs, incentives, energy generation, and electricity bill savings may vary.

Sheet Solar Layout
E2: Solar Screening Tool
E3: ='User Inputs'!C3 -> Version 1.5, Updated October 2020
A5: Solar PV System Layout or Usable Roof Area
A6: In the space below, include a layout of the building rooftop which includes a preliminary solar PV system design or alternatively identifies areas designated for the installation of solar PV. Please note: projects pursuing Enterprise Green Communities or LEED certification must submit a roof plan to HPD as part of the Solar Feasibility Analysis. This sheet does not need to be utilitized if a roof plan is furnished.
A35: Description, including estimated usable roof area for solar PV
A36: Rooftop solar layout above includes all reasonable locations for solar PV modules.
A43: ="Prepared by "&Name&" using Version 1.4 of the HPD Solar Screening Tool on "&TEXT(NOW(),"MMM-DD-YYYY") -> Prepared by John Doe using Version 1.4 of the HPD Solar Screening Tool on Oct-20-2020

Sheet Solar Summary
B1: Solar Screening Tool - Results
B2: =" "&'Solar Layout'!E3 -> Version 1.5, Updated October 2020
A4: ="Preliminary Solar Financial Analysis: "&SiteAddress -> Preliminary Solar Financial Analysis: 123 Main St
A5: Solar electric systems provide electricity bill savings, however they are also eligible for a number of federal, state and local incentives that can significantly improve return on investment. The summary below includes estimated costs, incentives, electricity bill savings, and payback period for a solar energy system on this property.
A10: Solar Energy System Size (kW-DC) | D10: =IFERROR(IF(RecommendedPVSystemSize<4,"System Too Small",RecommendedPVSystemSize),"") -> 42
A11: Year One Solar Production (kWh) | D11: =IFERROR(Y1SolarProduction,"") -> 45885
A12: Year One Utility Bill Savings | D12: =IFERROR('25 Year Cash Flow'!F5,"") -> 9499.41882
A13: Total Cost ($/Watt-DC) | D13: =D14/(PVSystemSize*1000) -> 4.354285714
A14: Total Cost Estimate | D14: =IFERROR(-'Assumptions Calcs & Lookups'!$B$105,"") -> 182880
A15: NY-SUN Incentive | D15: =IFERROR('Assumptions Calcs & Lookups'!$B$106,"") -> 42000
A16: Upfront Cost Estimate | D16: =IFERROR(D14-D15,"") -> 140880
A17: Cost After Incentives and Taxes | D17: =IFERROR(-'Assumptions Calcs & Lookups'!B115,"") -> 64736.89677
A18: Payback Period | D18: =IF(COUNTIF('25 Year Cash Flow'!Q4:Q29,"<0")&" years"="26 years", "N/A",COUNTIF('25 Year Cash Flow'!Q4:Q29,"<0")&" years") -> 7 years
A19: Internal Rate of Return | D19: =IFERROR(IRR('25 Year Cash Flow'!S4:S29,0.1),"") -> 0.1220009282
A20: Lifetime Net Savings | D20: ='25 Year Cash Flow'!Q29 -> 179505.3473
A21: Federal Investment Tax Credit* | D21: =IFERROR(ITC,"") -> 30990.50064
A22: Low Income Housing Tax Credit | D22: =IFERROR(TenYearLIHTCValue,"") -> 0
A23: NYC Property Tax Abatement | D23: =IFERROR(NYCPTA,"") -> 0
A24: Residential State Income Tax Credits | D24: =IFERROR(NYSResidentialTaxCredit+NYSHistoricTaxCredit,"") -> 0
A25: Depreciation (Federal and State)* | D25: =IFERROR('Assumptions Calcs & Lookups'!B110,"") -> 45152.60259
A26: Federal Taxes Due on State Tax Credit | D26: =IFERROR('Assumptions Calcs & Lookups'!B114,"") -> 0
A28: *If building owner is not able to benefit from tax incentives directly, third-party ownership may allow the owner to benefit from tax incentives indirectly.
A30: FEASIBILITY REPORT PREPARED BY | F30: NEXT STEPS
A31: Name | B31: =IF(Name=0,"",Name) -> John Doe | F31: 1. Submit Solar Feasibility Analysis to HPD. 2. HPD approves project, exempts project, or requires a Solar Consultation. 3. Project refines design as needed. 4. Team solicits bids from NYSERDA qualified solar installation companies.
A32: Company | B32: =IF(Company=0,"",Company) -> ACME Solar
A33: Email | B33: =IF(Email=0,"",Email) -> jd@acme.io
A34: Phone | B34: =IF(Phone=0,"",Phone) -> 212-222-2222
A35: HPD ID | B35: =IF('User Inputs'!D13=0,"",'User Inputs'!D13) -> 12345
A36: =IF(FormComplete=1,"","WARNING: incomplete form. Please enter values for all blue fields on the User Inputs and Solar Layout tabs.") -> 
A41: Disclaimer: Solar One is providing this preliminary analysis tool on an as-is basis and makes no claims regarding the accuracy of calculations and figures provided herein. Solar technical feasibility, installation costs, incentives, energy generation, and electricity bill savings may vary.

Sheet HPD Underwriting (hidden)
C2: Solar Underwriting Tool
C3: ='Solar Summary'!B2 -> Version 1.5, Updated October 2020
A5: User Inputs
A6: User to fill in all Highlighted Cells (blue). All other cells will be automatically populated/calculated. This tool can be used to assess preliminary solar financial viability for an NYC affordable housing property from an HPD underwriting perspective.
A8: Inputs from Solar Screening Tool or Solar Designer
A9: Site Address | D9: =SiteAddress -> 123 Main St
A10: Solar Systen Size (kW-DC) | D10: =PVSystemSize -> 42
A11: Estimated Owner Electric Cost (Annual) | D11: =AnnualElectricBill -> 20000
A12: Year One Utility Bill Savings (should be lower than Owner's Electric Cost) | D12: ='Solar Summary'!D12 -> 9499.41882
A13: Upfront Cost Estimate (after NY-SUN) | D13: ='Solar Summary'!D16 -> 140880
A14: Estimated Payback (in years) | D14: ='Solar Summary'!D18 -> 7 years
A16: Financing & Permanent Loan Assumptions (HPD PM to Populate)
A17: Estimated Project Cost (TDC)
A18: Number of Dwelling Units
A19: Loan Term (years)
A20: Perm. Loan Rate (%)
A21: Cap Rate (%) | D21: 0.05
A22: Permanent Lender Maximum LTV
A23: Permanent Lender Minimum DSCR (typically 1.15 or 1.25)
A24: % of Energy Savings that will be Underwritten | D24: 0.8
A26: Tax Credit Assumptions (HPD PM to Populate)
A27: LIHTC Annual Credit if applicable (9%, 4%, 0%) | D27: =LIHTCRate -> 0
A28: Eligible Basis with Boost (for QCT or DDA)
A29: Raise per Credit (LIHTC)
A30: LIHTC Credit equity | D30: =TenYearLIHTCValue -> 0
A31: LIHTC Credit equity per Dwelling Unit | D31: =IFERROR(D30/D18,) -> 0
A32: Federal Solar Tax Credit | D32: =FedTaxCreditPercent -> 0.22
A33: Raise per Solar Tax Credit (ITC)
A34: Federal Solar Tax Credit equity | D34: =ITC*'HPD Underwriting'!D33 -> 0
A36: Subsidy & Loan Impacts (Results Automatically Calculated)
A37: Total Cost after RETC & LIHTC Credit Applied | D37: =D13-D30-D34 -> 140880
A38: Underwritten Annual Energy Savings (Year One Savings * % Underwritten) | D38: =D24*D12 -> 7599.535056
A39: LTV Test for Additional First Mortgage | D39: =IF(COUNT(D21:D22)<2,"TBD",D38/D21*D22) -> TBD
A40: DSCR Test for Additional First Mortgage | D40: =IFERROR(-PV(D20/12,D19*12,D38/D23/12,0),"TBD") -> TBD
A41: Additional First Mortgage - (Lower of LTV & DSCR Test) | D41: =IF(OR(D39="TBD",D40="TBD"),"TBD",MIN(D39:D40)) -> TBD
A42: Subsidy Required (Incremental Cost of Solar) | D42: =IF(COUNT(D17:D24)<8,"TBD",D37-D41) -> TBD
A43: Subsidy per Dwelling Unit | D43: =IFERROR(D42/D18,"TBD") -> TBD
A44: Subsidy as Percent of TDC | D44: =IFERROR(D42/D17,"TBD") -> TBD
A45: Metric Tons of Carbon Avoided (Local Law 97 Coefficients for 2024-2030) | D45: ='Solar Summary'!D11*0.00028896 -> 13.2589296
A46: Annual "Value" of Avoided Carbon (Assuming $268/metric ton per LL97) | D46: =D45*268 -> 3553.393133

Sheet Assumptions Calcs & Lookups (hidden)
A1: Assumptions, Calculations and Lookup Tables
A3: System Price Estimate ($/Watt-DC) | D3: <- Update every 12 months | H3: Incentives by Project Completion Year
A4: Min (kW-DC) | B4: Max (kW-DC) | C4: Price ($/Watt-DC) | H4: Year | I4: ITC | J4: RETC | K4: NY-SUN | L4: NY-SUN Adder
A5: 4 | B5: 9.99 | C5: 5 | H5: 2020 | I5: 0.26 | J5: 0.26 | K5: 0.4 | L5: 0.6
A6: 10 | B6: 19.99 | C6: 4.25 | H6: 2021 | I6: 0.22 | J6: 0.22 | K6: 0.3 | L6: 0.7
A7: 20 | B7: 29.99 | C7: 3.6 | H7: 2022 | I7: 0.1 | J7: 0 | K7: 0.2 | L7: 0.8
A8: 30 | B8: 44.99 | C8: 3.3 | H8: 2023 | I8: 0.1 | J8: 0 | K8: 0.15 | L8: 0.85
A9: 45 | B9: 64.99 | C9: 3.1
A10: 65 | B10: 79.99 | C10: 2.95 | H10: EPC Price Decrease by Project Completion Year
A11: 80 | B11: 99.99 | C11: 2.85 | H11: Year | L11: Base Price Percentage
A12: 100 | B12: 149.99 | C12: 2.7 | H12: 2020 | L12: 1
A13: 150 | B13: 249.99 | C13: 2.5 | H13: 2021 | L13: =L12*(1-0.04) -> 0.96
A14: 250 | B14: 499.99 | C14: 2.3 | H14: 2022 | L14: =L13*(1-0.04) -> 0.9216
A15: 500 | B15: 749.99 | C15: 2.2 | H15: 2023 | L15: =L14*(1-0.04) -> 0.884736
A16: 750 | C16: 2.1
A17: Base EPC Price for Simulation ($/Watt-DC) | C17: =LOOKUP(PVSystemSize,Min__kW_DC,Price____Watt_DC) -> 3.3
A19: Pricing Adders | C19: Applies?
A20: Mechanically Attached Adder ($/Watt-DC) | B20: 0.25 | C20: =IF(RecommendedPVSystemSize<15,"Yes",IF(BldgHeight>100,"Yes","No")) -> No | D20: <- Systems that are under 15 kW-DC or above 100 ft will be subject to the mechanically attached adder.
A21: Canopy Adder ($/Watt-DC) | B21: 1.2 | C21: =IF(Canopy="Yes","Yes","No") -> Yes | D21: <- Only applicable if user indicates that a system is a canopy but does not specify the system price.
A22: Tall Building Adder ($/Watt-DC) | B22: 0.2 | C22: =IF(BldgHeight>'Assumptions Calcs & Lookups'!B23,"Yes","No") -> No
A23: Tall Building Adder Threshold (ft) | B23: 70
A24: Very Tall Building Adder ($/Watt-DC) | B24: 0.2 | C24: =IF(BldgHeight>'Assumptions Calcs & Lookups'!B25,"Yes","No") -> No | D24: <- Additional to the Tall Building Adder
A25: Very Tall Building Adder Threshold (ft) | B25: 150
A26: Landmarks Adder ($/Project) | B26: 1250 | C26: =IF(Landmark="Yes","Yes","No") -> No
A27: New Meter Adder ($/Project) | B27: 1500 | C27: =IF(ElectricTariff="EL2","No",IF(ElectricTariff="EL1","No","Yes")) -> Yes | D27: <- Applied when owner-paid electricity is metered under EL8, EL9, or EL12 rate in order to increase value of solar under VDER tariff.
A28: Prevailing Wage Adder (%) | B28: 0.2 | C28: =IF(PrevailingWage="Yes","Yes","No") -> No
A29: Total EPC Price for Model ($/Watt-DC) | B29: Total Price for Simulation ($/Watt-DC) | C29: =IF(OREPCPricePerWattDC<>"",OREPCPricePerWattDC,((((C17+SUMIF(C20:C24,"Yes",B20:B24))*PVSystemSize*1000)+SUMIF('Assumptions Calcs & Lookups'!C26:C27,"Yes",'Assumptions Calcs & Lookups'!B26:B27))/(PVSystemSize*1000)*VLOOKUP(ProjectCompletionYear,$H$12:$L$15,5,FALSE))*(IF(PrevailingWage="Yes",1+B28,1))) -> 4.354285714 | D29: <- Adjusted based on project year (assumes 4% annual decrease to turnkey EPC price)
A31: Solar Energy System and Production
A32: Year One Shade-Free Production Factor (kWh/kW-DC) | B32: 1150 | C32: <- Max output without using Advanced Inputs to override defaults (conservative).
A33: Solar Access (%) | B33: 0.95 | C33: <- Default value, Production Factor can be defined by user with Advanced Inputs.
A34: Effective Capacity Factor | B34: =(B32*SolarAccess)/8760 -> 0.1247146119 | C34: <- For reference only.
A35: Watts-DC Per Square Foot Usable Roof Area | B35: 12 | C35: <- Conservative assumption re: power density.
A36: Watts-DC Per Square Foot Usable Roof Area (Canopy) | B36: 14
A37: Max Possible System Size (kW-DC) | B37: =IF(Canopy="Yes",UsableRoofArea*B36/1000,UsableRoofArea*B35/1000) -> 42 | C37: <- Max system size based on available roof area (not considering electric bill).
A38: Recommended System Size (kW-DC) | B38: =IF(ORPVSystemSize<>"",ORPVSystemSize,IF(OR(ElectricTariff="EL2",ElectricTariff="EL1"),IF(MaxPVSystemSize*B32*SolarAccess<AnnualUsagekWh,MaxPVSystemSize,MaxPVSystemSize*(AnnualUsagekWh/(B37*B32*SolarAccess))),IF(MaxPVSystemSize*B32*SolarAccess*Y1VoS<AnnualElectricBill,MaxPVSystemSize,MaxPVSystemSize*(AnnualElectricBill/(MaxPVSystemSize*B32*SolarAccess*Y1VoS))))) -> 42 | C38: <- Recommended system never offsets more than 100% of annual usage under net metering, and never offsets more than 100% of owner-paid electric bill under VDER.
A39: Year One Solar Production (kWh) | B39: =IF(ORY1SolarProduction<>"",ORY1SolarProduction,RecommendedPVSystemSize*B32*SolarAccess) -> 45885
A40: Annual PV Performance Degradation | B40: =IF(ORAnnualPVDegradation<>"",ORAnnualPVDegradation,0.5%) -> 0.005
A42: Value of Solar Assumptions/Estimates
A43: Electric Tariff | B43: =IF(ORElectricTariff<>"",ORElectricTariff,IF(MasterMetered="Yes","EL8",IF(ElevatorBuilding="Yes","EL9",IF(AND(MasterMetered="No",ElevatorBuilding="No"),"EL2",)))) -> EL9 | C43: <- Estimated based on User Inputs. Advanced Inputs allow for override.
A44: Peak Demand (Prev. 12 Months or Estimated (kW)) | B44: =IF(ORPeakDemandkW<>"",ORPeakDemandkW,(AnnualUsagekWh/8760)*2) -> 22.83105023 | C44: <- Estimated based on User Inputs. Assumes 50% Load Factor. Advanced Inputs allow for override.
A45: Annual Usage (kWh) | B45: =IF(ORAnnualUsagekWh<>"",ORAnnualUsagekWh,IF(OR(ElectricTariff="EL9",ElectricTariff="EL8",ElectricTariff="EL12"),AnnualElectricBill/0.2,IF(OR(ElectricTariff="EL2",ElectricTariff="EL1"),AnnualElectricBill/0.24,))) -> 100000 | C45: <- Estimated based on User Inputs. Advanced Inputs allow for override.
A46: CSRP Load Zone | B46: =IF(ORCSRPLoadZone<>"",ORCSRPLoadZone,"7:00 PM-11:00 PM") -> 7:00 PM-11:00 PM | C46: <-Default is lowest value (evening peak). Advanced Inputs allow for override.
A48: NEM Value of Solar ($/kWh) | C48: <- Update every 12 months
A49: Utility Tariff | B49: NEM VoS
A50: EL2 | B50: 0.22
A51: EL8 | B51: 0.11
A52: EL9 | B52: 0.11
A53: EL1 | B53: 0.22
A54: EL12 | B54: 0.11
A56: VDER w Community Credit: Value of Solar by CSRP Load Zone ($/kWh) | C56: <- Update every 12 months. Source: NYSERDA VDER Calculator Version 2.3, published September 2019.
A57: 11:00 AM-3:00 PM | B57: 0.2928860505
A58: 2:00 PM-6:00 PM | B58: 0.2668453359
A59: 4:00 PM-8:00 PM | B59: 0.23565467
A60: 7:00 PM-11:00 PM | B60: 0.2140878026
A62: VoS for Model | B62: =IF(ORY1VoS<>"",ORY1VoS,IF(ElectricTariff="EL2",B50,IF(ElectricTariff="EL1",B53,IF(AND(ElectricTariff="EL9",PeakDemandkW>25),(VLOOKUP(CSRPLoadZone,CSRPVoSLookup,2,FALSE)-0.12),VLOOKUP(CSRPLoadZone,CSRPVoSLookup,2,FALSE))))) -> 0.2140878026 | C62: <- Assuming net energy metering for EL2 and EL1, VDER for all other electricity tariffs.
A63: VoS Annual Escalator | B63: =IF(ORVoSEscalator<>"",ORVoSEscalator,IF(OR(ElectricTariff="EL2",ElectricTariff="EL1"),"2.5%",1%)) -> 0.01 | C63: <- Assuming 2.5% annual increase to value of solar under net metering, 1% under VDER.
A65: Annual NEM Customer Benefit Contribution | B65: =-RecommendedPVSystemSize*1.09*12 -> -549.36 | C65: <- $1.09/month/kW-DC. Only applied for projects NOT using CDG
A66: CDG Annual Meter Fees | B66: =IF(ORCDGAnnualMeterFee<>"",ORCDGAnnualMeterFee,-27*12) -> -324 | C66: <- Only applied for projects where the value of solar is higher for VDER/CDG than NEM so solar export meter is recommended.
A68: Solar Incentives | C68: <- Update every 12 months
A69: NYSERDA NY-SUN Incentive MW Block ($/Watt-DC) | B69: =VLOOKUP(ProjectCompletionYear,$H$4:$L$8,4,FALSE) -> 0.3 | C69: <- References ProjectCompletionYear
A70: NYSERDA NY-SUN Affordable Housing Adder ($/Watt-DC) | B70: =VLOOKUP(ProjectCompletionYear,$H$4:$L$8,5,FALSE) -> 0.7 | C70: <- Only applicable for the first 200 kW-DC of any solar project.
A71: Total Solar Resource Fraction (TSRF) | B71: =88%*SolarAccess -> 0.836 | C71: <- If TSRF is less than 70%, NYSERDA reduces the incentive proportionately (TSRF*Shade-Free Incentive).
A72: NY-SUN Rebate ($/Watt-DC) | B72: =IF(AND(RecommendedPVSystemSize<=200,TSRF>=0.7),(B69+B70),IF(AND(RecommendedPVSystemSize<=200,TSRF<0.7),(B69+B70)*TSRF,IF(AND(RecommendedPVSystemSize>200,TSRF>=0.7),(((200*(B69+B70))+((RecommendedPVSystemSize-200)*B69))/RecommendedPVSystemSize),IF(AND(RecommendedPVSystemSize>200,TSRF<0.7),((((200*(B69+B70))+((RecommendedPVSystemSize-200)*B69))/RecommendedPVSystemSize)*TSRF),"")))) -> 1
A73: Federal Tax Credit | B73: =IF(ORFedTaxCreditPercent<>"",ORFedTaxCreditPercent,IF(OwnerType="Rental",VLOOKUP(ProjectCompletionYear,$H$4:$J$8,2,FALSE),IF(OwnerType="Co-op/Condo",VLOOKUP(ProjectCompletionYear,$H$4:$J$8,3,FALSE),))) -> 0.22 | C73: <- References OwnerType and ProjectCompletionYear
A74: NY State Residential Tax Credit | B74: 0.25 | C74: <- Co-ops/condos only, taken by the residents, capped at 50 kW-DC.
A75: NYC Property Tax Abatement | B75: 0.2 | C75: <- Likely not available to HPD-financed projects.
A76: NYC Property Tax Abatement Cap ($) | B76: 250000
A77: NY State Historic Tax Credit | B77: 0.2 | C77: <- Only applicable for rehab projects for co-ops/condos that are either landmark buildings or in an historic district AND income qualifying census tracts. https://www.tax.ny.gov/pit/credits/historic_rehab_credit.htm
A79: Other Assumptions
A80: Residential Federal Income Tax Rate | B80: =IF(ORFedTaxRate<>"",ORFedTaxRate,25%) -> 0.25 | C80: <- Used to calculate federal income taxes on state tax credit.
A81: Corporate Federal Income Tax Rate | B81: =IF(ORFedTaxRate<>"",ORFedTaxRate,21%) -> 0.21 | C81: <- Used to calculate depreciation value.
A82: State Income Tax Rate | B82: =IF(ORStateTaxRate<>"",ORStateTaxRate,7.1%) -> 0.071 | C82: <- Used to calculate depreciation value.
A83: Inverter Replacement Cost ($/Watt-DC) | B83: 0.2 | C83: <- Inverter is replaced in year 15.
A85: Depreciation Schedules
A86: Year | B86: Federal Accelerated Depreciation (MACRS) | C86: State Depreciation
A87: 1 | B87: 1 | C87: 0.2
A88: 2 | C88: 0.32
A89: 3 | C89: 0.192
A90: 4 | C90: 0.115
A91: 5 | C91: 0.115
A92: 6 | C92: 0.058
A94: Federal Depreciation Basis | B94: =IF(EligibleDepreciation="Yes",-TotalEPCPrice-(ITC/2)*TaxIncentiveMultiplier,0) -> 167386.2992 | C94: <- Total System Cost minus 50% of the value of the Federal Investment Tax Credit * Tax Incentive Multiplier
A95: State Depreciation Basis | B95: =IF(EligibleDepreciation="Yes",-UpfrontCost*TaxIncentiveMultiplier,0) -> 140865.912 | C95: <- Total System Cost minus NY SUN incentive * Tax Incentive Multiplier
A97: Low Income Housing Tax Credits
A98: LIHTC Basis | B98: =-TotalEPCPrice-(ITC/2)*TaxIncentiveMultiplier -> 167386.2992 | C98: <- Total System Cost minus 50% of the value of the Federal Investment Tax Credit * Tax Incentive Multiplier
A99: 9% LIHTC Rate | B99: 0.09 | C99: <- Source: October 2019 IRS bulletin: https://www.irs.gov/pub/irs-drop/rr-19-23.pdf
A100: 4% LIHTC Rate | B100: 0.0317 | C100: <- Source: October 2019 IRS bulletin: https://www.irs.gov/pub/irs-drop/rr-19-23.pdf
A101: Applicable LIHTC Rate | B101: =IF(ORLIHTCRate<>"",ORLIHTCRate,IF(LIHTCEligible="No",0,IF(LIHTCEligible=0.09,B99,IF(LIHTCEligible=0.04,B100,)))) -> 0
A103: Cost and Incentive Calculations
A104: Tax Incentive Multiplier | B104: 0.9999 | C104: <- Assumes that solar projects are integrated into developments with a general partner and tax equity investor with 99.99% ownership.
A105: System Cost | B105: =-RecommendedPVSystemSize*EPCPricePerWattDC*1000 -> -182880
A106: NY SUN Incentive | B106: =IF(Utility="PSEG-LI",0,NYSUNDollarPerWattDC*RecommendedPVSystemSize*1000) -> 42000
A107: Upfront Cost | B107: =B105+B106 -> -140880
A108: Federal Investment Tax Credit | B108: =IF(TaxIncentiveEligible="Yes",-UpfrontCost*B73*TaxIncentiveMultiplier,) -> 30990.50064 | C108: <- Federal Tax Credit calculated after deducting NYSERDA incentive from total EPC price.
A109: LIHTC Value (Undiscounted) | B109: =B98*B101*10*TaxIncentiveMultiplier -> 0 | C109: <- Total ten year value of LIHTC without net present value calculation.
A110: Depreciation Value (Federal and State) | B110: =SUM('25 Year Cash Flow'!N5:O10) -> 45152.60259
A111: NY State Residential Tax Credit | B111: =IF(TaxIncentiveEligible="No",0,IF(TaxIncentiveEligible="",0,IF(AND(OwnerType="Co-op/Condo",RecommendedPVSystemSize<=50),-UpfrontCost*'Assumptions Calcs & Lookups'!B74,IF(AND(OwnerType="Co-op/Condo",RecommendedPVSystemSize>50),50*(C29-B72)*1000*B74,0)))) -> 0
A112: NY Historic Tax Credit | B112: =IF(AND(OwnerType="Co-op/Condo",Landmark="Yes",QualifyingCensusTract="Yes",NewConstruction="Renovation"),-UpfrontCost*'Assumptions Calcs & Lookups'!B77,0) -> 0 | C112: <- Only available for existing owner-occupied properties that are Landmark or Historic and in Income Qualifying Census Tracts.
A113: NYC Property Tax Abatement | B113: =IF(PTAEligible="",0,IF(PTAEligible="No",0,IF(UpfrontCost*'Assumptions Calcs & Lookups'!B75>'Assumptions Calcs & Lookups'!B76,'Assumptions Calcs & Lookups'!B76,-UpfrontCost*'Assumptions Calcs & Lookups'!B75))) -> 0
A114: Increased Federal Taxes Due to State Incentives | B114: =(-SUM(B111:B112)*'Assumptions Calcs & Lookups'!B80) -> 0 | C114: <- Assuming that NY State income tax credits result in corresponding increase to federal income, and therefore tax liability. https://www.bu.edu/law/files/2016/06/Feld-Final-5-30.pdf.
A115: Net Cost After Incentives and Taxes | B115: =SUM(B107:B114) -> -64736.89677
A117: Form Completion Check | B117: =IF(SUM(ISBLANK(SiteAddress),ISBLANK(OwnerType),ISBLANK(NewConstruction),ISBLANK(ProjectCompletionYear),ISBLANK(TaxIncentiveEligible),ISBLANK(EligibleDepreciation),ISBLANK(LIHTCEligible),ISBLANK(PTAEligible),ISBLANK(Landmark),ISBLANK(QualifyingCensusTract),ISBLANK(BldgHeight),ISBLANK(UsableRoofArea),ISBLANK(ElectricTariff),ISBLANK(PeakDemandkW),ISBLANK(AnnualUsagekWh),ISBLANK(AnnualElectricBill),ISBLANK(CSRPLoadZone),ISBLANK(Name),ISBLANK(Company),ISBLANK(Email),ISBLANK(Phone),ISBLANK(SolarLayoutNotes))>0,0,1) -> 1
A119: This tool was developed by non-profit Solar One. It is provided on an as-is basis and Solar One makes no claims regarding the accuracy of its contents.
A120: If you have questions or feedback regarding this tool, please email herecomessolar@solar1.org.

Sheet 25 Year Cash Flow (hidden)
A1: 25 Year Cashflow
A3: Year | B3: Solar Energy Production (kWh) | C3: Value of Solar ($/kWh) | D3: Customer Benefit Contribution (Not CDG) | E3: New Meter Fees (CDG Only) | F3: Net Electricity Bill Savings | G3: Upfront System Cost | H3: Inverter Replacement | I3: Federal Tax Credit | J3: LIHTC | K3: Property Tax Abatement | L3: NYS Tax Credit | M3: NYS Historic Tax Credit | N3: Federal Accelerated Depreciation | O3: State Depreciation | P3: Increased Federal Taxes Due to State Tax Credits | Q3: Balance | R3: Balance (No Tax Incentives) | S3: Cash Inflows and Outflows
A4: 0 | G4: =UpfrontCost -> -140880 | Q4: =SUM(F4:P4) -> -140880 | R4: =Q4 -> -140880 | S4: =SUM(F4:P4) -> -140880
A5: 1 | B5: =Y1SolarProduction -> 45885 | C5: =Y1VoS -> 0.2140878026 | D5: =IF(ElectricTariff="EL8","0",IF(ElectricTariff="EL12","0",IF(AND(ElectricTariff="EL9",PeakDemandkW<25),0,IF(AND(ElectricTariff="EL9",PeakDemandkW>25),(NEMAnnualCBC*0.7),NEMAnnualCBC)))) -> 0 | E5: =IF(ElectricTariff="EL2",0,IF(ElectricTariff="EL1",0,IF(AND(ElectricTariff="EL9",PeakDemandkW>25),0,CDGAnnualMeterFee))) -> -324 | F5: =(B5*C5)+SUM(D5:E5) -> 9499.41882 | I5: =ITC -> 30990.50064 | J5: =TenYearLIHTCValue/10 -> 0 | K5: =NYCPTA/4 -> 0 | L5: =NYSResidentialTaxCredit -> 0 | M5: =NYSHistoricTaxCredit -> 0 | N5: ='Assumptions Calcs & Lookups'!B94*'Assumptions Calcs & Lookups'!B87*'Assumptions Calcs & Lookups'!$B$81 -> 35151.12283 | O5: ='Assumptions Calcs & Lookups'!$B$95*'Assumptions Calcs & Lookups'!C87*'Assumptions Calcs & Lookups'!$B$82 -> 2000.29595 | P5: ='Assumptions Calcs & Lookups'!B114 -> 0 | Q5: =Q4+SUM(F5:P5) -> -63238.66176 | R5: =R4+F5+H5 -> -131380.5812 | S5: 77641.33824
A6: 2 | B6: =B5*(1-AnnualPVDegradation) -> 45655.575 | C6: =C5*(1+VoSEscalator) -> 0.2162286806 | D6: 0 | E6: =IF(ElectricTariff="EL2",0,IF(ElectricTariff="EL1",0,IF(AND(ElectricTariff="EL9",PeakDemandkW>25),0,CDGAnnualMeterFee))) -> -324 | F6: =(B6*C6)+SUM(D6:E6) -> 9548.044743 | J6: =TenYearLIHTCValue/10 -> 0 | K6: =NYCPTA/4 -> 0 | N6: ='Assumptions Calcs & Lookups'!$B$94*'Assumptions Calcs & Lookups'!B88*'Assumptions Calcs & Lookups'!$B$81 -> 0 | O6: ='Assumptions Calcs & Lookups'!$B$95*'Assumptions Calcs & Lookups'!C88*'Assumptions Calcs & Lookups'!$B$82 -> 3200.473521 | Q6: -50490.14349 | R6: -121832.5364 | S6: 12748.51826
A7: 3 | B7: 45427.29712 | C7: 0.2183909674 | D7: 0 | E7: -324 | F7: 9596.911365 | J7: 0 | K7: =NYCPTA/4 -> 0 | N7: ='Assumptions Calcs & Lookups'!$B$94*'Assumptions Calcs & Lookups'!B89*'Assumptions Calcs & Lookups'!$B$81 -> 0 | O7: ='Assumptions Calcs & Lookups'!$B$95*'Assumptions Calcs & Lookups'!C89*'Assumptions Calcs & Lookups'!$B$82 -> 1920.284112 | Q7: -38972.94802 | R7: -112235.6251 | S7: 11517.19548
A8: 4 | B8: 45200.16064 | C8: 0.2205748771 | D8: 0 | E8: -324 | F8: 9646.019876 | J8: 0 | K8: =NYCPTA/4 -> 0 | N8: ='Assumptions Calcs & Lookups'!$B$94*'Assumptions Calcs & Lookups'!B90*'Assumptions Calcs & Lookups'!$B$81 -> 0 | O8: ='Assumptions Calcs & Lookups'!$B$95*'Assumptions Calcs & Lookups'!C90*'Assumptions Calcs & Lookups'!$B$82 -> 1150.170171 | Q8: -28176.75797 | R8: -102589.6052 | S8: 10796.19005
A9: 5 | B9: 44974.15984 | C9: 0.2227806258 | D9: 0 | E9: -324 | F9: 9695.371474 | J9: 0 | N9: ='Assumptions Calcs & Lookups'!$B$94*'Assumptions Calcs & Lookups'!B91*'Assumptions Calcs & Lookups'!$B$81 -> 0 | O9: ='Assumptions Calcs & Lookups'!$B$95*'Assumptions Calcs & Lookups'!C91*'Assumptions Calcs & Lookups'!$B$82 -> 1150.170171 | Q9: -17331.21632 | R9: -92894.23372 | S9: 10845.54165
A10: 6 | B10: 44749.28904 | C10: 0.2250084321 | D10: 0 | E10: -324 | F10: 9744.967363 | J10: 0 | N10: ='Assumptions Calcs & Lookups'!$B$94*'Assumptions Calcs & Lookups'!B92*'Assumptions Calcs & Lookups'!$B$81 -> 0 | O10: ='Assumptions Calcs & Lookups'!$B$95*'Assumptions Calcs & Lookups'!C92*'Assumptions Calcs & Lookups'!$B$82 -> 580.0858256 | Q10: -7006.163133 | R10: -83149.26636 | S10: 10325.05319
A11: 7 | B11: 44525.54259 | C11: 0.2272585164 | D11: 0 | E11: -324 | F11: 9794.808752 | J11: 0 | Q11: 2788.645618 | R11: -73354.45761 | S11: 9794.808752
A12: 8 | B12: 44302.91488 | C12: 0.2295311016 | D12: 0 | E12: -324 | F12: 9844.896855 | J12: 0 | Q12: 12633.54247 | R12: -63509.56075 | S12: 9844.896855
A13: 9 | B13: 44081.4003 | C13: 0.2318264126 | D13: 0 | E13: -324 | F13: 9895.232894 | J13: 0 | Q13: 22528.77537 | R13: -53614.32786 | S13: 9895.232894
A14: 10 | B14: 43860.9933 | C14: 0.2341446767 | D14: 0 | E14: -324 | F14: 9945.818097 | J14: 0 | Q14: 32474.59346 | R14: -43668.50976 | S14: 9945.818097
A15: 11 | B15: 43641.68834 | C15: 0.2364861235 | D15: 0 | E15: -324 | F15: 9996.653697 | Q15: 42471.24716 | R15: -33671.85606 | S15: 9996.653697
A16: 12 | B16: 43423.47989 | C16: 0.2388509847 | D16: 0 | E16: -324 | F16: 10047.74093 | Q16: 52518.98809 | R16: -23624.11513 | S16: 10047.74093
A17: 13 | B17: 43206.3625 | C17: 0.2412394946 | D17: 0 | E17: -324 | F17: 10099.08105 | Q17: 62618.06914 | R17: -13525.03408 | S17: 10099.08105
A18: 14 | B18: 42990.33068 | C18: 0.2436518895 | D18: 0 | E18: -324 | F18: 10150.6753 | Q18: 72768.74445 | R18: -3374.358779 | S18: 10150.6753
A19: 15 | B19: 42775.37903 | C19: 0.2460884084 | D19: 0 | E19: -324 | F19: 10202.52494 | H19: =-RecommendedPVSystemSize*'Assumptions Calcs & Lookups'!B83*1000 -> -8400 | Q19: 74571.26939 | R19: -1571.833835 | S19: 1802.524944
A20: 16 | B20: 42561.50213 | C20: 0.2485492925 | D20: 0 | E20: -324 | F20: 10254.63124 | Q20: 84825.90063 | R20: 8682.797408 | S20: 10254.63124
A21: 17 | B21: 42348.69462 | C21: 0.2510347854 | D21: 0 | E21: -324 | F21: 10306.99547 | Q21: 95132.8961 | R21: 18989.79288 | S21: 10306.99547
A22: 18 | B22: 42136.95115 | C22: 0.2535451333 | D22: 0 | E22: -324 | F22: 10359.61889 | Q22: 105492.515 | R22: 29349.41177 | S22: 10359.61889
A23: 19 | B23: 41926.26639 | C23: 0.2560805846 | D23: 0 | E23: -324 | F23: 10412.50281 | Q23: 115905.0178 | R23: 39761.91458 | S23: 10412.50281
A24: 20 | B24: 41716.63506 | C24: 0.2586413904 | D24: 0 | E24: -324 | F24: 10465.6485 | Q24: 126370.6663 | R24: 50227.56308 | S24: 10465.6485
A25: 21 | B25: 41508.05189 | C25: 0.2612278043 | D25: 0 | E25: -324 | F25: 10519.05726 | Q25: 136889.7236 | R25: 60746.62033 | S25: 10519.05726
A26: 22 | B26: 41300.51163 | C26: 0.2638400824 | D26: 0 | E26: -324 | F26: 10572.73039 | Q26: 147462.4539 | R26: 71319.35072 | S26: 10572.73039
A27: 23 | B27: 41094.00907 | C27: 0.2664784832 | D27: 0 | E27: -324 | F27: 10626.66921 | Q27: 158089.1232 | R27: 81946.01993 | S27: 10626.66921
A28: 24 | B28: 40888.53902 | C28: 0.269143268 | D28: 0 | E28: -324 | F28: 10680.87502 | Q28: 168769.9982 | R28: 92626.89495 | S28: 10680.87502
A29: 25 | B29: 40684.09633 | C29: 0.2718347007 | D29: 0 | E29: -324 | F29: 10735.34915 | Q29: 179505.3473 | R29: 103362.2441 | S29: 10735.34915

Sheet Change Log (hidden)
A1: CHANGE LOG
A2: Last updated by Noah Ginsburg (noah@solar1.org) on October 20, 2020
A3: 2020-10-01
A4: Item | B4: Description
A5: Added HPD ID | B5: Added HPD ID field to User Input and to the bottom of the Solar Summary tab (displayed under contact info).
A6: Corrected formatting issues with HPD Underwriting tab | B6: Formatted all dollar values as $$.
A8: 2020-06-01
A9: Item | B9: Description
A10: Added TaxCreditMultiplier | B10: To account for the fact that many of the properties are financed with LIHTC, and HPD uses a standard assumption of 99.99% ownership by the tax equity investor. This assumption is applied universally.
A11: Added HPD Underwriting tab | B11: Added tab for HPD's underwriting analysis, which provides another view of the incremental cost and/or benefit of a solar project on an affordable housing development's financials.
A12: Updated NY-SUN incentive levels | B12: Reduced NYSERDA's base incentive to $0.40/Watt-DC due to the May 2020 drop in the NY-SUN incentive. Modified the affordable housing adder to reflect NYSERDA's modification to the incentive that ensures affordable housing solar projects up to 200 kW-DC receive a $1.00/Watt-DC incentive.
A13: Added "Annual NEM Customer Benefit Contribution " | B13: Added to Assumptions Calcs & lookups line 65, and Cash Flow column D. Did not include potential escalator that may be determined in the future. Calculation assumes 70% of CBC for large commercial VDER projects (as recommended by the PSC) Calculation extends to 25 years, however PSC only guarantees rate for 20 years.
A14: Cleaned up system size formula on Solar Summary | B14: (changed "B39" to RecommendedPVSystemSize)
A15: Added Prevailing Wage option | B15: Added Prevailing wage to user inputs which increases the price by 20%
A17: 2020-03-20
A18: Item | B18: Description
A19: Added Instructions and Assumptions tab | B19: Added brief instructions for how to use the tool as well as a detailed description of all key assumptions included in the solar screening tool.
A21: 2020-02-01
A22: Item | B22: Description
A23: Simplified User Inputs re: Owner Paid Electricity | B23: Moved electricity tariff, usage (kWh), peak demand, and CSRP zone to Advanced Inputs. Added calculations to estimate usage, peak demand and tariff from simplified user inputs (Est. Annual Owner Paid Electricity Costs, Elevator vs Walkup, Master Metered)
A24: Utility Company | B24: Added input for PSEG-LI. If user selects PSEG-LI as their utility, the value of solar calculation is unchanged however the model removes the NYSERDA incentive which is not available in Far Rockaway.
A25: Canopy | B25: Created user input where user can specify whether a canopy installation is utilized, and added a pricing increase (and increased power density assumption) to account for this design approach.
A27: 2019-12-01
A28: Item | B28: Description
A29: Project Completion Year | B29: Added Project Completion Year to user inputs. Created declining incentive schedules and forecast 4% annual turnkey EPC cost reduction to account for projected changes.
A30: Advanced Inputs | B30: Created an Advanced Inputs tab with optional inputs that override the default values.
A31: NY-SUN Incentive | B31: Modified NY-SUN affordable housing adder to assume that increases to stabilize the incentive at $1.00/Watt-DC as the MW Block steps down.
